fUSD/lending_fUSD_20260214
["ID","MTS","AMOUNT","RATE_DAILY","PERIOD"]
[405369582,1771093914867,-500.0,0.00039452,9]
[405369583,1771093914878,-512.22479151,0.00039452,9]
[405369584,1771093914888,-511.6835999,0.00039452,9]
[405369585,1771093914898,-500.0,0.00039452,9]
[405369586,1771093914907,-500.0,0.00039452,9]
[405369587,1771093914916,-500.0,0.00039452,9]
[405369588,1771093914925,-513.19321977,0.00039452,9]
[405369589,1771093914936,-500.0,0.00039452,9]
[405369590,1771093914946,-515.50241209,0.00039452,9]
[405369591,1771093914956,-500.0,0.00039452,9]
[405369592,1771093914969,-532.40613415,0.00039452,9]
[405369593,1771093914979,-509.66787529,0.00039452,9]
[405369594,1771093914989,-508.5359009,0.00039452,9]
[405369595,1771093914998,-500.0,0.00039452,9]
[405369596,1771093915008,-500.0,0.00039452,9]
[405369597,1771093915019,-500.0,0.00039452,9]
[405369598,1771093915030,-500.0,0.00039452,9]
[405369599,1771093915041,-500.0,0.00039452,9]
[405369600,1771093915052,-512.75188017,0.00039452,9]
[405369601,1771093915062,-500.0,0.00039452,9]
[405369602,1771093915075,-521.80812837,0.00039452,9]
[405369603,1771093915084,-3818.35,0.00039452,9]
[405369604,1771093915094,-516.83144844,0.00039452,9]
[405369605,1771093915103,-520.42888546,0.00039452,9]
[405369606,1771093915113,-513.8374638,0.00039452,9]
[405369607,1771093915122,-500.0,0.00039452,9]
[405369608,1771093915131,-500.0,0.00039452,9]
[405369609,1771093915140,-500.0,0.00039452,9]
[405369610,1771093915150,-500.0,0.00039452,9]
[405369611,1771093915163,-520.73771626,0.00039452,9]
[405369612,1771093915172,-500.0,0.00039452,9]
[405369613,1771093915182,-510.14000244,0.00039452,9]
[405369614,1771093915191,-500.0,0.00039452,9]
[405369615,1771093915200,-500.0,0.00039452,9]
[405369616,1771093915210,-500.0,0.00039452,9]
[405369617,1771093915219,-500.0,0.00039452,9]
[405369618,1771093915229,-500.0,0.00039452,9]
[405369619,1771093915239,-510.62140822,0.00039452,9]
[405369620,1771093915249,-521.07696382,0.00039452,9]
[405369621,1771093915260,-529.39343097,0.00039452,9]
[405369622,1771093915271,-500.0,0.00039452,9]
[405369623,1771093915282,-525.30705999,0.00039452,9]
[405369624,1771093915294,-500.0,0.00039452,9]
[405369625,1771093915305,-532.07509564,0.00039452,9]
[405369626,1771093915315,-500.0,0.00039452,9]
[405369627,1771093915328,-504.62542571,0.00039452,9]
[405369628,1771093915338,-500.0,0.00039452,9]
[405369629,1771093915352,-514.60378057,0.00039452,9]
[405369630,1771093915362,-513.62401273,0.00039452,9]
[405369631,1771093915373,-500.0,0.00039452,9]
[405369632,1771093915383,-501.2709924,0.00039452,9]
[405369633,1771093915395,-500.0,0.00039452,9]
[405369634,1771093915408,-514.29853591,0.00039452,9]
[405369635,1771093915419,-500.0,0.00039452,9]
[405369636,1771093915429,-637.27521353,0.00039452,9]
[405369637,1771093915438,-500.0,0.00039452,9]
[405369638,1771093915449,-500.0,0.00039452,9]
[405369639,1771093915458,-516.36424971,0.00039452,9]
[405369640,1771093915468,-500.0,0.00039452,9]
[405369641,1771093915480,-512.23269405,0.00039452,9]
[405369642,1771093915489,-500.0,0.00039452,9]
[405369643,1771093915498,-500.0,0.00039452,9]
[405369644,1771093915507,-500.0,0.00039452,9]
[405369645,1771093915516,-517.07045297,0.00039452,9]
[405369646,1771093915525,-500.0,0.00039452,9]
[405369647,1771093915535,-500.0,0.00039452,9]
[405369648,1771093915544,-520.6817356,0.00039452,9]
[405369649,1771093915556,-500.0,0.00039452,9]
[405369650,1771093915565,-532.63452541,0.00039452,9]
[405369651,1771093915575,-511.90370883,0.00039452,9]
[405369652,1771093915585,-500.0,0.00039452,9]
[405369653,1771093915595,-500.0,0.00039452,9]
[405369654,1771093915604,-541.73216499,0.00039452,9]
[405369655,1771093915614,-500.0,0.00039452,9]
[405369656,1771093915623,-500.0,0.00039452,9]
[405369657,1771093915633,-1478.52,0.00039452,9]
[405369658,1771093915643,-210.16277215,0.00039452,9]
[405369659,1771093915653,-500.0,0.00039452,9]
[405369660,1771093915663,-500.0,0.00039452,9]
[405369661,1771093915672,-500.0,0.00039452,9]
[405369662,1771093915683,-557.02835703,0.00039452,9]
[405369663,1771093915692,-500.0,0.00039452,9]
[405369664,1771093915702,-534.03185184,0.00039452,9]
[405369665,1771093915711,-500.0,0.00039452,9]
[405369666,1771093915721,-500.0,0.00039452,9]
[405369667,1771093915731,-574.09299226,0.00039452,9]
[405369668,1771093915740,-506.78003347,0.00039452,9]
[405369669,1771093915750,-500.0,0.00039452,9]
[405369670,1771093915759,-469.52222237,0.00039452,9]
[405369671,1771093915768,-500.0,0.00039452,9]
[405369672,1771093915778,-500.0,0.00039452,9]
[405369673,1771093915787,-500.0,0.00039452,9]
[405369674,1771093915797,-511.0358075,0.00039452,9]
[405369675,1771093915806,-527.1673503,0.00039452,9]
[405369676,1771093915815,-500.0,0.00039452,9]
[405369677,1771093915825,-500.0,0.00039452,9]
[405369678,1771093915834,-500.0,0.00039452,9]
[405369679,1771093915844,-500.0,0.00039452,9]
[405369680,1771093915854,-500.0,0.00039452,9]
[405369681,1771093915864,-500.0,0.00039452,9]
[405369682,1771093915874,-500.0,0.00039452,9]
[405369683,1771093915884,-500.0,0.00039452,9]
[405369684,1771093915894,-500.0,0.00039452,9]
[405369685,1771093915903,-500.0,0.00039452,9]
[405369686,1771093915913,-523.6163595,0.00039452,9]
[405369687,1771093915922,-510.33256247,0.00039452,9]
[405369688,1771093915938,-500.0,0.00039452,9]
[405369689,1771093915950,-500.0,0.00039452,9]
[405369690,1771093915960,-3459.63,0.00039452,9]
[405369691,1771093915970,-543.49791404,0.00039452,9]
[405369692,1771093915980,-544.7774717,0.00039452,9]
[405369693,1771093915991,-500.0,0.00039452,9]
[405369694,1771093916000,-1007.77,0.00039452,9]
[405369695,1771093916010,-500.0,0.00039452,9]
[405369696,1771093916021,-1366.15,0.00039452,2]
[405369697,1771093916031,-500.0,0.00039452,9]
[405369698,1771093916040,-500.0,0.00039452,9]
[405369699,1771093916050,-500.0,0.00039452,9]
[405369700,1771093916060,-500.0,0.00039452,9]
[405369701,1771093916070,-1397.34,0.00039452,9]
[405369702,1771093916081,-500.0,0.00039452,9]
[405369703,1771093916091,-500.0,0.00039452,9]
[405369704,1771093916100,-316.42930699,0.00039452,9]
[405369705,1771093916109,-500.0,0.00039452,9]
[405369706,1771093916120,-461.91173589,0.00039452,9]
[405369707,1771093916131,-500.0,0.00039452,9]
[405369708,1771093916142,-581.99,0.00039452,9]
[405369709,1771093916153,-500.0,0.00039452,9]
[405369710,1771093916162,-500.0,0.00039452,9]
[405369711,1771093916172,-500.0,0.00039452,9]
[405369712,1771093916183,-500.0,0.00039452,9]
[405369713,1771093916193,-500.0,0.00039452,9]
[405369714,1771093916202,-510.11743984,0.00039452,9]
[405369715,1771093916212,-500.0,0.00039452,9]
[405369716,1771093916221,-500.0,0.00039452,9]
[405369717,1771093916231,-500.0,0.00039452,9]
[405369718,1771093916242,-500.0,0.00039452,9]
[405369719,1771093916253,-617.76358195,0.00039452,9]
[405369720,1771093916264,-500.0,0.00039452,9]
[405369721,1771093916276,-500.0,0.00039452,9]
[405369722,1771093916289,-500.0,0.00039452,9]
[405369723,1771093916299,-500.0,0.00039452,9]
[405369724,1771093916310,-500.0,0.00039452,9]
[405369725,1771093916323,-500.0,0.00039452,9]
[405369726,1771093916333,-510.99391458,0.00039452,9]
[405369727,1771093916344,-3781.3,0.00039452,9]
[405369728,1771093916355,-500.0,0.00039452,9]
[405369729,1771093916366,-500.0,0.00039452,9]
[405369730,1771093916376,-500.0,0.00039452,9]
[405369731,1771093916386,-500.0,0.00039452,9]
[405369732,1771093916400,-326.82639422,0.00039452,9]
[405369733,1771093916412,-500.0,0.00039452,9]
[405369734,1771093916424,-500.0,0.00039452,9]
[405369735,1771093916434,-500.0,0.00039452,9]
[405369736,1771093916445,-515.54267718,0.00039452,9]
[405369737,1771093916457,-500.0,0.00039452,9]
[405369738,1771093916468,-500.0,0.00039452,9]
[405369739,1771093916479,-500.0,0.00039452,9]
[405369740,1771093916489,-500.0,0.00039452,9]
[405369741,1771093916499,-553.70449865,0.00039452,9]
[405369742,1771093916510,-500.0,0.00039452,9]
[405369743,1771093916522,-520.73584173,0.00039452,9]
[405369744,1771093916872,-500.0,0.00039452,9]
[405369745,1771093916882,-500.0,0.00039452,9]
[405369746,1771093916892,-500.0,0.00039452,9]
[405369747,1771093916902,-500.0,0.00039452,9]
[405369748,1771093916912,-500.0,0.00039452,9]
[405369749,1771093916923,-500.0,0.00039452,9]
[405369750,1771093916932,-500.0,0.00039452,9]
[405369751,1771093916942,-531.03363673,0.00039452,9]
[405369752,1771093916952,-500.0,0.00039452,9]
[405369753,1771093916962,-500.0,0.00039452,9]
[405369754,1771093916976,-522.22943187,0.00039452,9]
[405369755,1771093916987,-665.99,0.00039452,9]
[405369756,1771093916997,-500.0,0.00039452,9]
[405369757,1771093917007,-500.0,0.00039452,9]
[405369758,1771093917020,-441.12786523,0.00039452,9]
[405369759,1771093917030,-500.0,0.00039452,9]
[405369760,1771093917039,-500.0,0.00039452,9]
[405369761,1771093917049,-500.0,0.00039452,9]
[405369762,1771093917059,-500.0,0.00039452,9]
[405369763,1771093917069,-500.0,0.00039452,9]
[405369764,1771093917079,-500.0,0.00039452,9]
[405369765,1771093917089,-500.0,0.00039452,9]
[405369766,1771093917100,-516.31614009,0.00039452,9]
[405369767,1771093917111,-500.0,0.00039452,9]
[405369768,1771093917121,-512.2,0.00039452,9]
[405369769,1771093917133,-500.0,0.00039452,9]
[405369770,1771093917143,-500.0,0.00039452,9]
[405369771,1771093917153,-513.01388577,0.00039452,9]
[405369772,1771093917167,-500.0,0.00039452,9]
[405369773,1771093917176,-531.30829922,0.00039452,9]
[405369774,1771093917187,-491.39074119,0.00039452,9]
[405369775,1771093917196,-500.0,0.00039452,9]
[405369776,1771093917206,-3417.97,0.00039452,9]
[405369777,1771093917216,-500.0,0.00039452,9]
[405369778,1771093917226,-500.0,0.00039452,9]
[405369780,1771093917235,-637.73271964,0.00039452,9]
[405369781,1771093917246,-500.0,0.00039452,9]
[405369782,1771093917256,-500.0,0.00039452,9]
[405369783,1771093917268,-500.0,0.00039452,9]
[405369784,1771093917281,-500.0,0.00039452,9]
[405369785,1771093917291,-500.0,0.00039452,9]
[405369786,1771093917302,-500.0,0.00039452,9]
[405369787,1771093917314,-5149.98,0.00039452,9]
[405369788,1771093917326,-500.0,0.00039452,9]
[405369789,1771093917336,-500.0,0.00039452,9]
[405369790,1771093917349,-3403.19,0.00039452,9]
[405369791,1771093917363,-500.0,0.00039452,9]
[405369792,1771093917375,-500.0,0.00039452,9]
[405369793,1771093917385,-231.88539085,0.00039452,9]
[405369794,1771093917396,-500.0,0.00039452,9]
[405369795,1771093917411,-538.62,0.00039452,9]
[405369796,1771093917422,-500.0,0.00039452,9]
[405369797,1771093917433,-500.0,0.00039452,9]
[405369798,1771093917445,-500.0,0.00039452,9]
[405369799,1771093917456,-500.0,0.00039452,9]
[405369800,1771093917468,-556.88,0.00039452,9]
[405369801,1771093917483,-521.84597237,0.00039452,9]
[405369802,1771093917495,-5585.82,0.00039452,9]
[405369803,1771093917506,-500.0,0.00039452,9]
[405369804,1771093917517,-527.7401404,0.00039452,9]
[405369805,1771093917529,-561.54,0.00039452,9]
[405369806,1771093917540,-1233.52,0.00039452,9]
[405369807,1771093917552,-500.0,0.00039452,9]
[405369808,1771093917562,-500.0,0.00039452,9]
[405369809,1771093917572,-500.0,0.00039452,9]
[405369810,1771093917582,-500.0,0.00039452,9]
[405369811,1771093917591,-500.0,0.00039452,9]
[405369812,1771093917601,-604.57829702,0.00039452,9]
[405369813,1771093917611,-543.89289842,0.00039452,9]
[405369814,1771093917621,-524.16958415,0.00039452,9]
[405369815,1771093917631,-590.36954217,0.00039452,9]
[405369816,1771093917640,-540.9,0.00039452,2]
[405369817,1771093917650,-711.16,0.00039452,9]
[405369818,1771093917660,-500.0,0.00039452,9]
[405369819,1771093917670,-500.0,0.00039452,9]
[405369820,1771093917679,-555.87841931,0.00039452,9]
[405369821,1771093917690,-524.45,0.00039452,9]
[405369822,1771093917699,-500.0,0.00039452,9]
[405369823,1771093917709,-517.51105579,0.00039452,9]
[405369824,1771093917722,-885.44,0.00039452,9]
[405369825,1771093917732,-500.0,0.00039452,9]
[405369826,1771093917741,-500.0,0.00039452,9]
[405369827,1771093917751,-500.0,0.00039452,9]
[405369828,1771093917761,-500.0,0.00039452,9]
[405369829,1771093917771,-500.0,0.00039452,9]
[405369830,1771093917781,-2840.08,0.00039452,9]
[405369831,1771093917792,-500.0,0.00039452,9]
[405369832,1771093917804,-500.0,0.00039452,9]
[405369833,1771093917815,-500.0,0.00039452,9]
[405369834,1771093917826,-500.06,0.00039452,9]
[405369835,1771093917837,-597.66078099,0.00039452,9]
[405369836,1771093917847,-500.0,0.00039452,9]
[405369837,1771093917858,-500.0,0.00039452,9]
[405369838,1771093917868,-500.0,0.00039452,9]
[405369839,1771093917880,-500.0,0.00039452,9]
[405369840,1771093917892,-500.0,0.00039452,9]
[405369841,1771093917902,-500.0,0.00039452,9]
[405369842,1771093917912,-500.0,0.00039452,9]
[405369843,1771093917921,-3032.83,0.00039452,9]
[405369844,1771093917931,-500.0,0.00039452,9]
[405369845,1771093917941,-3433.22,0.00039452,9]
[405369846,1771093917951,-500.0,0.00039452,9]
[405369847,1771093917960,-510.62969539,0.00039452,9]
[405369848,1771093917970,-507.19984141,0.00039452,9]
[405369849,1771093917980,-500.0,0.00039452,9]
[405369850,1771093917990,-500.0,0.00039452,9]
[405369851,1771093918000,-500.0,0.00039452,9]
[405369852,1771093918010,-560.47090183,0.00039452,9]
[405369853,1771093918020,-500.0,0.00039452,9]
[405369854,1771093918030,-500.0,0.00039452,9]
[405369855,1771093918040,-500.0,0.00039452,9]
[405369856,1771093918050,-507.69801382,0.00039452,9]
[405369857,1771093918060,-500.0,0.00039452,9]
[405369858,1771093918070,-500.0,0.00039452,9]
[405369859,1771093918080,-631.89,0.00039452,9]
[405369860,1771093918089,-500.0,0.00039452,9]
[405369861,1771093918099,-500.0,0.00039452,9]
[405369862,1771093918119,-500.0,0.00039452,9]
[405369863,1771093918130,-413.07278377,0.00039452,9]
[405369864,1771093918140,-610.06249772,0.00039452,9]
[405369865,1771093918150,-414.39736194,0.00039452,9]
[405369866,1771093918161,-500.0,0.00039452,9]
[405369867,1771093918171,-632.04161262,0.00039452,9]
[405369868,1771093918181,-500.0,0.00039452,9]
[405369869,1771093918191,-532.00363954,0.00039452,9]
[405369870,1771093918201,-500.0,0.00039452,9]
[405369871,1771093918211,-500.0,0.00039452,9]
[405369872,1771093918221,-500.0,0.00039452,9]
[405369873,1771093918231,-500.0,0.00039452,9]
[405369874,1771093918240,-500.0,0.00039452,9]
[405369875,1771093918250,-500.0,0.00039452,9]
[405369876,1771093918259,-500.0,0.00039452,9]
[405369877,1771093918270,-509.72967691,0.00039452,9]
[405369878,1771093918279,-500.0,0.00039452,9]
[405369879,1771093918289,-500.0,0.00039452,9]
[405369880,1771093918299,-611.89616942,0.00039452,9]
[405369881,1771093918309,-3775.51,0.00039452,9]
[405369882,1771093918319,-500.0,0.00039452,9]
[405369883,1771093918329,-509.66724114,0.00039452,9]
[405369884,1771093918339,-500.0,0.00039452,9]
[405369885,1771093918349,-505.72548527,0.00039452,9]
[405369886,1771093918359,-500.0,0.00039452,9]
[405369887,1771093918369,-500.0,0.00039452,9]
[405369888,1771093918379,-500.0,0.00039452,9]
[405369889,1771093918389,-500.0,0.00039452,9]
[405369890,1771093918404,-500.0,0.00039452,9]
[405369891,1771093918416,-500.0,0.00039452,9]
[405369892,1771093918425,-500.0,0.00039452,9]
[405369893,1771093918435,-1984.08,0.00039452,9]
[405369894,1771093918444,-536.58774154,0.00039452,9]
[405369895,1771093918455,-500.0,0.00039452,9]
[405369896,1771093918464,-500.0,0.00039452,9]
[405369897,1771093918474,-500.0,0.00039452,9]
[405369898,1771093918483,-500.0,0.00039452,9]
[405369899,1771093918494,-500.0,0.00039452,9]
[405369900,1771093918504,-500.0,0.00039452,9]
[405369901,1771093918514,-500.0,0.00039452,9]
[405369902,1771093918524,-500.0,0.00039452,9]
[405369903,1771093918534,-3890.45,0.00039452,9]
[405369904,1771093918544,-500.0,0.00039452,9]
[405369905,1771093918553,-514.54791486,0.00039452,9]
[405369906,1771093918563,-500.0,0.00039452,9]
[405369907,1771093918573,-500.0,0.00039452,9]
[405369908,1771093918583,-512.59770355,0.00039452,9]
[405369909,1771093918592,-500.0,0.00039452,9]
[405369910,1771093918602,-500.0,0.00039452,9]
[405369911,1771093918611,-554.90320187,0.00039452,9]
[405369912,1771093918622,-4088.99,0.00039452,9]
[405369913,1771093918636,-500.0,0.00039452,9]
[405369914,1771093918646,-500.0,0.00039452,9]
[405369915,1771093918656,-500.0,0.00039452,9]
[405369916,1771093918665,-500.0,0.00039452,9]
[405369917,1771093918679,-202.16337237,0.00039452,9]
[405369918,1771093918688,-500.0,0.00039452,9]
[405369919,1771093918699,-500.0,0.00039452,9]
[405369920,1771093918709,-500.0,0.00039452,9]
[405369921,1771093918719,-529.74164559,0.00039452,9]
[405369922,1771093918730,-613.00829876,0.00039452,9]
[405369923,1771093918739,-870.9,0.00039452,9]
[405369924,1771093918749,-500.0,0.00039452,2]
[405369925,1771093918760,-500.0,0.00039452,9]
[405369926,1771093918770,-530.15269593,0.00039452,9]
[405369927,1771093918781,-500.0,0.00039452,9]
[405369928,1771093918792,-710.66,0.00039452,9]
[405369929,1771093918803,-534.33036927,0.00039452,9]
[405369930,1771093918814,-468.05825482,0.00039452,9]
[405369931,1771093918825,-551.73926769,0.00039452,9]
[405369932,1771093918834,-500.0,0.00039452,9]
[405369933,1771093918843,-535.36108178,0.00039452,9]
[405369934,1771093918853,-516.48649431,0.00039452,9]
[405369935,1771093918863,-500.0,0.00039452,9]
[405369936,1771093918873,-500.0,0.00039452,9]
[405369937,1771093918883,-518.58509417,0.00039452,9]
[405369938,1771093918892,-500.0,0.00039452,9]
[405369939,1771093918903,-500.0,0.00039452,9]
[405369940,1771093918912,-3872.17,0.00039452,9]
[405369941,1771093918922,-500.0,0.00039452,9]
[405369942,1771093918931,-500.0,0.00039452,9]
[405369943,1771093918941,-500.0,0.00039452,9]
[405369944,1771093918951,-500.0,0.00039452,9]
[405369945,1771093918961,-509.94418849,0.00039452,9]
[405369946,1771093918970,-500.0,0.00039452,9]
[405369947,1771093918980,-500.0,0.00039452,9]
[405369948,1771093918990,-500.0,0.00039452,9]
[405369949,1771093919001,-500.0,0.00039452,9]
[405369950,1771093919011,-500.0,0.00039452,9]
[405369951,1771093919020,-500.0,0.00039452,9]
[405369952,1771093919030,-500.0,0.00039452,9]
[405369953,1771093919039,-500.0,0.00039452,9]
[405369954,1771093919048,-577.68,0.00039452,9]
[405369955,1771093919058,-500.0,0.00039452,9]
[405369956,1771093919071,-500.0,0.00039452,2]
[405369957,1771093919081,-500.0,0.00039452,9]
[405369958,1771093919090,-500.0,0.00039452,9]
[405369959,1771093919100,-500.0,0.00039452,9]
[405369960,1771093919109,-500.0,0.00039452,9]
[405369961,1771093919119,-500.0,0.00039452,9]
[405369962,1771093919129,-500.0,0.00039452,9]
[405369963,1771093919138,-509.87720251,0.00039452,9]
[405369964,1771093919148,-500.0,0.00039452,9]
[405369965,1771093919158,-500.0,0.00039452,9]
[405369966,1771093919167,-500.0,0.00039452,9]
[405369967,1771093919176,-5100.22,0.00039452,9]
[405369968,1771093919186,-500.0,0.00039452,9]
[405369969,1771093919195,-500.0,0.00039452,9]
[405369970,1771093919205,-500.0,0.00039452,9]
[405369971,1771093919214,-500.0,0.00039452,9]
[405369972,1771093919224,-10810.91,0.00039452,9]
[405369973,1771093919233,-513.81843651,0.00039452,9]
[405369974,1771093919242,-4011.27,0.00039452,9]
[405369975,1771093919252,-4569.78,0.00039452,9]
[405369976,1771093919261,-472.5471509,0.00039452,9]
[405369977,1771093919271,-500.0,0.00039452,9]
[405369978,1771093919280,-500.0,0.00039452,9]
[405369979,1771093919290,-500.0,0.00039452,9]
[405369980,1771093919299,-3982.43,0.00039452,9]
[405369981,1771093919308,-500.0,0.00039452,9]
[405369982,1771093919318,-500.0,0.00039452,9]
[405369983,1771093919327,-522.25084551,0.00039452,9]
[405369984,1771093919337,-500.0,0.00039452,9]
[405369985,1771093919346,-945.81,0.00039452,9]
[405369986,1771093919355,-511.89727877,0.00039452,9]
[405369987,1771093919365,-300.0,0.00039452,2]
[405369988,1771093919374,-5326.62,0.00039452,9]
[405369989,1771093919572,-1374.78,0.00039452,9]
[405369990,1771093919582,-500.0,0.00039452,9]
[405369991,1771093919592,-4059.63,0.00039452,9]
[405369992,1771093919602,-500.0,0.00039452,9]
[405369993,1771093919612,-3578.35,0.00039452,9]
[405369994,1771093919622,-625.07760891,0.00039452,5]
[405369995,1771093919631,-591.9557673,0.00039452,9]
[405369996,1771093919641,-571.4486448,0.00039452,9]
[405369997,1771093919651,-500.0,0.00039452,9]
[405369998,1771093919660,-5981.56,0.00039452,9]
[405369999,1771093919670,-500.0,0.00039452,9]
[405370000,1771093919679,-500.0,0.00039452,9]
[405370001,1771093919689,-500.0,0.00039452,9]
[405370002,1771093919698,-500.0,0.00039452,9]
[405370003,1771093919708,-5562.93,0.00039452,9]
[405370004,1771093919718,-500.0,0.00039452,9]
[405370005,1771093919728,-500.0,0.00039452,9]
[405370006,1771093919737,-259.35200417,0.00039452,9]
[405370007,1771093919748,-542.48767606,0.00039452,9]
[405370008,1771093919757,-500.0,0.00039452,9]
[405370009,1771093919770,-3804.91,0.00039452,9]
[405370010,1771093919780,-500.0,0.00039452,9]
[405370011,1771093919789,-3292.7,0.00039452,9]
[405370012,1771093919799,-10011.46,0.00039452,9]
[405370013,1771093919810,-533.9312323,0.00039452,9]
[405370014,1771093919820,-500.0,0.00039452,9]
[405370015,1771093919829,-500.0,0.00039452,9]
[405370016,1771093919839,-500.0,0.00039452,9]
[405370017,1771093919849,-150.0,0.00039452,9]
[405370018,1771093919858,-500.0,0.00039452,9]
[405370019,1771093919868,-500.0,0.00039452,9]
[405370020,1771093919878,-5698.9,0.00039452,9]
[405370021,1771093919887,-618.1,0.00039452,9]
[405370022,1771093919897,-500.0,0.00039452,9]
[405370023,1771093919906,-500.0,0.00039452,9]
[405370024,1771093919916,-520.71465571,0.00039452,9]
[405370025,1771093919925,-500.0,0.00039452,9]
[405370026,1771093919934,-500.0,0.00039452,9]
[405370027,1771093919943,-500.0,0.00039452,9]
[405370028,1771093919952,-500.0,0.00039452,9]
[405370029,1771093919962,-500.0,0.00039452,9]
[405370030,1771093919971,-500.0,0.00039452,9]
[405370031,1771093919980,-500.0,0.00039452,9]
[405370032,1771093919990,-500.0,0.00039452,9]
[405370033,1771093920000,-500.0,0.00039452,9]
[405370034,1771093920010,-500.0,0.00039452,9]
[405370035,1771093920020,-500.0,0.00039452,9]
[405370036,1771093920030,-3635.6,0.00039452,9]
[405370037,1771093920040,-4860.79,0.00039452,9]
[405370038,1771093920050,-500.0,0.00039452,9]
[405370039,1771093920059,-585.84,0.00039452,9]
[405370040,1771093920069,-500.0,0.00039452,9]
[405370041,1771093920079,-500.0,0.00039452,9]
[405370042,1771093920088,-5822.07,0.00039452,9]
[405370043,1771093920098,-500.0,0.00039452,9]
[405370044,1771093920107,-500.0,0.00039452,9]
[405370045,1771093920117,-8145.86,0.00039452,9]
[405370046,1771093920127,-3702.56,0.00039452,9]
[405370047,1771093920136,-500.0,0.00039452,9]
[405370048,1771093920145,-1020.67,0.00039452,9]
[405370049,1771093920155,-500.0,0.00039452,9]
[405370050,1771093920164,-644.80531003,0.00039452,9]
[405370051,1771093920174,-500.0,0.00039452,9]
[405370052,1771093920184,-500.0,0.00039452,9]
[405370053,1771093920194,-500.0,0.00039452,9]
[405370054,1771093920203,-579.77,0.00039452,9]
[405370055,1771093920213,-2809.91,0.00039452,15]
[405370056,1771093920223,-500.0,0.00039452,9]
[405370057,1771093920232,-500.0,0.00039452,9]
[405370058,1771093920242,-500.0,0.00039452,9]
[405370059,1771093920252,-500.0,0.00039452,9]
[405370060,1771093920262,-692.65,0.00039452,9]
[405370061,1771093920272,-835.77,0.00039452,9]
[405370062,1771093920282,-500.0,0.00039452,9]
[405370063,1771093920292,-500.0,0.00039452,9]
[405370064,1771093920302,-500.0,0.00039452,9]
[405370065,1771093920312,-500.0,0.00039452,9]
[405370066,1771093920322,-618.2711318,0.00039452,9]
[405370067,1771093920331,-500.0,0.00039452,9]
[405370068,1771093920341,-4321.01,0.00039452,9]
[405370069,1771093920351,-349.62270809,0.00039452,9]
[405370070,1771093920360,-500.0,0.00039452,9]
[405370071,1771093920370,-500.0,0.00039452,9]
[405370072,1771093920380,-500.0,0.00039452,9]
[405370073,1771093920389,-500.0,0.00039452,9]
[405370074,1771093920399,-500.0,0.00039452,9]
[405370075,1771093920413,-5541.84,0.00039452,9]
[405370076,1771093920423,-11996.33,0.00039452,9]
[405370077,1771093920433,-500.0,0.00039452,9]
[405370078,1771093920443,-456.35014103,0.00039452,9]
[405370079,1771093920454,-500.0,0.00039452,9]
[405370080,1771093920464,-500.0,0.00039452,9]
[405370081,1771093920474,-4068.1,0.00039452,9]
[405370082,1771093920484,-500.0,0.00039452,9]